[Event "GER-chW Blitz 2019"]
[Site "Magdeburg"]
[Date "2019.05.25"]
[Round "8.1"]
[White "Roesler, Hannah Clara Hed"]
[Black "Zimmer, Elke"]
[Result "0-1"]
[ECO "C55"]
[WhiteElo "1619"]
[BlackElo "1926"]
[Annotator "NA"]
[PlyCount "112"]
[EventDate "2019.05.25"]
[EventType "tourn"]
[EventCountry "GER"]
[SourceTitle "playchess.com"]
[Source "ChessBase"]
[SourceQuality "1"]
[TimeControl "180+2"]

1. e4 {[%emt 0:00:00]} e5 {[%emt 0:00:00]} 2. Nf3 {[%emt 0:00:00]} Nc6 {[%emt 0:00:00]} 3. Bc4 {[%emt 0:00:00]} Nf6 {[%emt 0:00:02]} 4. d4 {[%emt 0:00:01]} d6 {[%emt 0:00:10]} 5. dxe5 {[%emt 0:00:17]} Nxe4 {[%emt 0:00:06]} 6. Qd5 {[%emt 0:00:16]} Be6 {[%emt 0:00:13]} 7. Qxe4 {[%emt 0:00:12]} d5 {[%emt 0:00:01]} 8. Bxd5 {[%emt 0:00:23]} Qxd5 {[%emt 0:00:03]} 9. Nc3 {[%emt 0:00:12]} Qxe4+ {[%emt 0:00:01]} 10. Nxe4 {[%emt 0:00:02]} Bf5 {[%emt 0:00:23]} 11. Nfd2 {[%emt 0:00:28]} Nxe5 {[%emt 0:00:11]} 12. O-O {[%emt 0:00:20]} O-O-O {[%emt 0:00:02]} 13. b3 {[%emt 0:00:19]} Bb4 {[%emt 0:00:03]} 14. c3 {[%emt 0:00:09]} Ba5 {[%emt 0:00:09]} 15. Bb2 {[%emt 0:00:06]} Nd3 {[%emt 0:00:05]} 16. Ba3 {[%emt 0:00:07]} Rhe8 {[%emt 0:00:05]} 17. Ng3 {[%emt 0:00:03]} Bg6 {[%emt 0:00:03]} 18. Nc4 {[%emt 0:00:02]} Bxc3 {[%emt 0:00:05]} 19. Rad1 {[%emt 0:00:05]} Nf4 {[%emt 0:00:12]} 20. Bc1 {[%emt 0:00:12]} Rxd1 {[%emt 0:00:05]} 21. Rxd1 {[%emt 0:00:01]} Nd3 {[%emt 0:00:04]} 22. Rxd3 {[%emt 0:00:06]} Bxd3 {[%emt 0:00:02]} 23. h3 {[%emt 0:00:04]} Bxc4 {[%emt 0:00:01]} 24. bxc4 {[%emt 0:00:01]} Re1+ {[%emt 0:00:02]} 25. Kh2 {[%emt 0:00:01]} Rxc1 {[%emt 0:00:01]} 26. Ne4 {[%emt 0:00:02]} Be5+ {[%emt 0:00:02]} 27. g3 {[%emt 0:00:01]} Rxc4 {[%emt 0:00:02]} 28. Ng5 {[%emt 0:00:03]} f6 {[%emt 0:00:13]} 29. Nf3 {[%emt 0:00:03]} Rc2 {[%emt 0:00:01]} 30. Kg2 {[%emt 0:00:02]} Rxa2 {[%emt 0:00:01]} 31. Ne1 {[%emt 0:00:05]} Rd2 {[%emt 0:00:04]} 32. Kf3 {[%emt 0:00:04]} a5 {[%emt 0:00:01]} 33. Ke3 {[%emt 0:00:04]} Rd4 {[%emt 0:00:02]} 34. f4 {[%emt 0:00:05]} Rd1 {[%emt 0:00:04]} 35. Nd3 {[%emt 0:00:04]} Rxd3+ {[%emt 0:00:05]} 36. Kxd3 {[%emt 0:00:02]} Bd6 {[%emt 0:00:01]} 37. Kc4 {[%emt 0:00:02]} c6 {[%emt 0:00:02]} 38. Kb3 {[%emt 0:00:01]} b5 {[%emt 0:00:01]} 39. h4 {[%emt 0:00:03]} Kc7 {[%emt 0:00:01]} 40. Kc3 {[%emt 0:00:01]} Kb6 {[%emt 0:00:01]} 41. Kb3 {[%emt 0:00:01]} c5 {[%emt 0:00:02]} 42. Kc3 {[%emt 0:00:00]} a4 {[%emt 0:00:01]} 43. Kb2 {[%emt 0:00:01]} b4 {[%emt 0:00:01]} 44. Kc2 Kb5 45. Kb1 {[%emt 0:00:01]} a3 {[%emt 0:00:01]} 46. Ka2 {[%emt 0:00:01]} Ka4 {[%emt 0:00:01]} 47. Kb1 {[%emt 0:00:01]} c4 {[%emt 0:00:01]} 48. Kc2 {[%emt 0:00:01]} b3+ {[%emt 0:00:01]} 49. Kb1 {[%emt 0:00:00]} Bc5 {[%emt 0:00:01]} 50. Kc1 {[%emt 0:00:01]} a2 {[%emt 0:00:02]} 51. Kb2 {[%emt 0:00:02]} Bd4+ {[%emt 0:00:01]} 52. Kc1 {[%emt 0:00:01]} a1=Q+ {[%emt 0:00:03]} 53. Kd2 {[%emt 0:00:02]} Qc3+ {[%emt 0:00:02]} 54. Ke2 {[%emt 0:00:01]} Qe3+ {[%emt 0:00:03]} 55. Kd1 {[%emt 0:00:01]} Bc3 {[%emt 0:00:02]} 56. h5 {[%emt 0:00:04]} Qd2# {[%emt 0:00:01]} 0-1

[Event "GER-chW Blitz 2019"]
[Site "Magdeburg"]
[Date "2019.05.25"]
[Round "8.2"]
[White "Kopylov, Luba"]
[Black "Mader, Lena"]
[Result "1-0"]
[ECO "E81"]
[WhiteElo "2078"]
[BlackElo "1839"]
[Annotator "NA"]
[PlyCount "57"]
[EventDate "2019.05.25"]
[EventType "tourn"]
[EventCountry "GER"]
[SourceTitle "playchess.com"]
[Source "ChessBase"]
[SourceQuality "1"]
[TimeControl "180+2"]

1. d4 {[%emt 0:00:00]} Nf6 {[%emt 0:00:00]} 2. c4 {[%emt 0:00:01]} g6 {[%emt 0:00:00]} 3. Nc3 Bg7 4. e4 {[%emt 0:00:03]} d6 {[%emt 0:00:01]} 5. f3 {[%emt 0:00:01]} O-O {[%emt 0:00:01]} 6. Be3 {[%emt 0:00:01]} c5 {[%emt 0:00:18]} 7. Nge2 {[%emt 0:00:06]} cxd4 {[%emt 0:00:09]} 8. Nxd4 {[%emt 0:00:03]} Nc6 {[%emt 0:00:01]} 9. Qd2 {[%emt 0:00:12]} Re8 {[%emt 0:00:02]} 10. Nde2 {[%emt 0:00:07]} a6 {[%emt 0:00:19]} 11. g4 {[%emt 0:00:26]} Ne5 {[%emt 0:00:03]} 12. Nd4 {[%emt 0:00:04]} Nfd7 {[%emt 0:00:31]} 13. h4 {[%emt 0:00:15]} Nc6 {[%emt 0:00:18]} 14. Nxc6 {[%emt 0:00:26]} bxc6 {[%emt 0:00:01]} 15. h5 {[%emt 0:00:04]} Ne5 {[%emt 0:00:08]} 16. Be2 {[%emt 0:00:01]} a5 {[%emt 0:00:34]} 17. Bh6 {[%emt 0:00:19]} Bh8 {[%emt 0:00:20]} 18. f4 {[%emt 0:00:08]} Nxc4 {[%emt 0:00:10]} 19. Bxc4 {[%emt 0:00:04]} Bxg4 {[%emt 0:00:02]} 20. hxg6 {[%emt 0:00:05]} hxg6 21. Qh2 {[%emt 0:00:04]} Qb6 {[%emt 0:00:16]} 22. Bf8 {[%emt 0:00:23]} Qe3+ {[%emt 0:00:11]} 23. Ne2 {[%emt 0:00:02]} Bh5 {[%emt 0:00:02]} 24. Bh6 {[%emt 0:00:31]} Bxb2 {[%emt 0:00:01]} 25. Rb1 {[%emt 0:00:21]} Bc3+ {[%emt 0:00:02]} 26. Kf1 {[%emt 0:00:01]} Qf3+ {[%emt 0:00:08]} 27. Qf2 {[%emt 0:00:01]} Qg4 28. Rg1 Qh3+ 29. Qg2 1-0

[Event "GER-chW Blitz 2019"]
[Site "Magdeburg"]
[Date "2019.05.25"]
[Round "8.3"]
[White "Gheng, Simona"]
[Black "Braje, Monika"]
[Result "1-0"]
[ECO "B01"]
[WhiteElo "1991"]
[BlackElo "1781"]
[Annotator "NA"]
[PlyCount "155"]
[EventDate "2019.05.25"]
[EventType "tourn"]
[EventCountry "GER"]
[SourceTitle "playchess.com"]
[Source "ChessBase"]
[SourceQuality "1"]
[TimeControl "180+2"]

1. e4 {[%emt 0:00:00]} d5 {[%emt 0:00:00]} 2. exd5 {[%emt 0:00:01]} Nf6 {[%emt 0:00:00]} 3. d4 {[%emt 0:00:01]} Nxd5 {[%emt 0:00:00]} 4. Nf3 {[%emt 0:00:00]} g6 {[%emt 0:00:02]} 5. c3 {[%emt 0:00:01]} Bg7 {[%emt 0:00:01]} 6. Bd3 {[%emt 0:00:02]} O-O {[%emt 0:00:02]} 7. O-O {[%emt 0:00:02]} Nc6 {[%emt 0:00:03]} 8. h3 {[%emt 0:00:02]} e5 {[%emt 0:00:14]} 9. dxe5 {[%emt 0:00:11]} Nxe5 {[%emt 0:00:01]} 10. Nxe5 {[%emt 0:00:01]} Bxe5 {[%emt 0:00:01]} 11. Bh6 {[%emt 0:00:01]} Re8 {[%emt 0:00:01]} 12. Bc4 {[%emt 0:00:07]} c6 {[%emt 0:00:11]} 13. Qf3 {[%emt 0:00:07]} Be6 {[%emt 0:00:06]} 14. Nd2 {[%emt 0:00:12]} b5 {[%emt 0:00:02]} 15. Bb3 {[%emt 0:00:01]} a5 {[%emt 0:00:01]} 16. Rfe1 {[%emt 0:00:24]} Bh8 {[%emt 0:00:01]} 17. Ne4 {[%emt 0:00:10]} a4 {[%emt 0:00:02]} 18. Bg5 {[%emt 0:00:27]} f6 {[%emt 0:00:26]} 19. Bxd5 {[%emt 0:00:03]} Bxd5 {[%emt 0:00:16]} 20. Nxf6+ {[%emt 0:00:14]} Bxf6 {[%emt 0:00:07]} 21. Rxe8+ {[%emt 0:00:20]} Qxe8 {[%emt 0:00:01]} 22. Qxf6 {[%emt 0:00:02]} Qf7 {[%emt 0:00:11]} 23. Qd6 {[%emt 0:00:06]} Re8 {[%emt 0:00:05]} 24. Be3 {[%emt 0:00:11]} Re6 {[%emt 0:00:09]} 25. Qd8+ {[%emt 0:00:04]} Kg7 {[%emt 0:00:01]} 26. Qg5 {[%emt 0:00:04]} Re8 {[%emt 0:00:16]} 27. Qh6+ {[%emt 0:00:02]} Kg8 {[%emt 0:00:00]} 28. a3 {[%emt 0:00:02]} Qf8 {[%emt 0:00:08]} 29. Qg5 {[%emt 0:00:03]} Qe7 {[%emt 0:00:07]} 30. Qh6 {[%emt 0:00:03]} Qf8 {[%emt 0:00:01]} 31. Rd1 {[%emt 0:00:01]} Qg7 {[%emt 0:00:13]} 32. Qxg7+ {[%emt 0:00:05]} Kxg7 {[%emt 0:00:00]} 33. g3 {[%emt 0:00:06]} Kf6 {[%emt 0:00:01]} 34. Bd4+ {[%emt 0:00:01]} Ke6 {[%emt 0:00:01]} 35. Re1+ {[%emt 0:00:01]} Kd7 {[%emt 0:00:01]} 36. Rxe8 {[%emt 0:00:01]} Kxe8 {[%emt 0:00:01]} 37. f4 {[%emt 0:00:01]} Kf7 {[%emt 0:00:01]} 38. Kf2 {[%emt 0:00:00]} Ke6 {[%emt 0:00:01]} 39. Ke3 {[%emt 0:00:01]} h5 {[%emt 0:00:03]} 40. g4 {[%emt 0:00:01]} hxg4 {[%emt 0:00:02]} 41. hxg4 {[%emt 0:00:00]} Bb3 {[%emt 0:00:08]} 42. Be5 {[%emt 0:00:05]} Bc2 {[%emt 0:00:01]} 43. Kd4 {[%emt 0:00:01]} Bb3 {[%emt 0:00:11]} 44. Bg7 {[%emt 0:00:05]} Bd5 {[%emt 0:00:02]} 45. Kc5 {[%emt 0:00:05]} Be4 {[%emt 0:00:04]} 46. c4 bxc4 {[%emt 0:00:13]} 47. Kxc4 {[%emt 0:00:07]} Bd5+ {[%emt 0:00:04]} 48. Kc5 {[%emt 0:00:01]} Bf3 {[%emt 0:00:03]} 49. Kb4 {[%emt 0:00:02]} Bd1 {[%emt 0:00:03]} 50. g5 {[%emt 0:00:04]} Kd5 {[%emt 0:00:02]} 51. Be5 {[%emt 0:00:02]} Bc2 {[%emt 0:00:03]} 52. Kc3 {[%emt 0:00:05]} Bd1 {[%emt 0:00:04]} 53. Bc7 {[%emt 0:00:03]} Bb3 {[%emt 0:00:06]} 54. f5 {[%emt 0:00:03]} gxf5 {[%emt 0:00:01]} 55. g6 {[%emt 0:00:01]} Ke4 {[%emt 0:00:07]} 56. g7 {[%emt 0:00:02]} f4 {[%emt 0:00:02]} 57. Kb4 {[%emt 0:00:01]} f3 {[%emt 0:00:02]} 58. Bg3 {[%emt 0:00:05]} Ke3 {[%emt 0:00:01]} 59. g8=Q {[%emt 0:00:03]} Bxg8 {[%emt 0:00:02]} 60. Kxa4 {[%emt 0:00:01]} f2 {[%emt 0:00:02]} 61. Bxf2+ {[%emt 0:00:01]} Kxf2 {[%emt 0:00:00]} 62. Ka5 {[%emt 0:00:01]} c5 {[%emt 0:00:03]} 63. Kb5 {[%emt 0:00:00]} c4 {[%emt 0:00:01]} 64. a4 {[%emt 0:00:01]} Bd5 {[%emt 0:00:02]} 65. Kc5 {[%emt 0:00:03]} Ba8 {[%emt 0:00:01]} 66. Kxc4 {[%emt 0:00:00]} Ke3 67. Kc5 Kd3 {[%emt 0:00:01]} 68. b4 {[%emt 0:00:02]} Kc3 {[%emt 0:00:02]} 69. b5 {[%emt 0:00:00]} Kb3 {[%emt 0:00:02]} 70. a5 {[%emt 0:00:01]} Ka4 {[%emt 0:00:01]} 71. Kb6 {[%emt 0:00:00]} Be4 {[%emt 0:00:02]} 72. a6 {[%emt 0:00:01]} Bf3 {[%emt 0:00:02]} 73. a7 {[%emt 0:00:02]} Kb4 {[%emt 0:00:01]} 74. Ka6 {[%emt 0:00:01]} Kc5 {[%emt 0:00:04]} 75. b6 {[%emt 0:00:00]} Be2+ {[%emt 0:00:03]} 76. Kb7 {[%emt 0:00:03]} Kb5 {[%emt 0:00:05]} 77. Kc7 {[%emt 0:00:01]} Bf3 78. b7 1-0

[Event "GER-chW Blitz 2019"]
[Site "Magdeburg"]
[Date "2019.05.25"]
[Round "8.4"]
[White "Kunze, Kerstin"]
[Black "Schulze, Lara"]
[Result "1-0"]
[ECO "C01"]
[WhiteElo "2066"]
[BlackElo "2160"]
[Annotator "NA"]
[PlyCount "65"]
[EventDate "2019.05.25"]
[EventType "tourn"]
[EventCountry "GER"]
[SourceTitle "playchess.com"]
[Source "ChessBase"]
[SourceQuality "1"]
[TimeControl "180+2"]

1. e4 {[%emt 0:00:00]} e6 {[%emt 0:00:00]} 2. d4 {[%emt 0:00:01]} d5 {[%emt 0:00:00]} 3. exd5 {[%emt 0:00:04]} exd5 {[%emt 0:00:00]} 4. c4 {[%emt 0:00:01]} Nf6 {[%emt 0:00:03]} 5. Nf3 {[%emt 0:00:01]} Bb4+ {[%emt 0:00:07]} 6. Bd2 {[%emt 0:00:06]} Bxd2+ 7. Nbxd2 {[%emt 0:00:03]} O-O {[%emt 0:00:08]} 8. Be2 {[%emt 0:00:00]} dxc4 {[%emt 0:00:02]} 9. Nxc4 {[%emt 0:00:02]} Nc6 {[%emt 0:00:08]} 10. h3 {[%emt 0:00:08]} Nd5 {[%emt 0:00:04]} 11. Qd2 {[%emt 0:00:45]} Qf6 {[%emt 0:00:17]} 12. Nfe5 {[%emt 0:00:30]} Nce7 {[%emt 0:00:56]} 13. O-O {[%emt 0:00:13]} Qf4 {[%emt 0:00:06]} 14. Qxf4 {[%emt 0:00:13]} Nxf4 {[%emt 0:00:01]} 15. Bf3 {[%emt 0:00:00]} c6 {[%emt 0:00:05]} 16. Rfe1 {[%emt 0:00:04]} Ned5 {[%emt 0:00:06]} 17. Nd6 {[%emt 0:00:06]} f6 {[%emt 0:00:21]} 18. Nec4 {[%emt 0:00:10]} b5 {[%emt 0:00:14]} 19. Na5 {[%emt 0:00:07]} Bd7 {[%emt 0:00:27]} 20. Kh2 {[%emt 0:00:13]} Nd3 {[%emt 0:00:19]} 21. Re2 {[%emt 0:00:06]} N3f4 {[%emt 0:00:05]} 22. Rc2 {[%emt 0:00:07]} Nb4 {[%emt 0:00:06]} 23. Rd2 {[%emt 0:00:01]} Nfd5 {[%emt 0:00:03]} 24. a3 {[%emt 0:00:07]} Na6 {[%emt 0:00:04]} 25. Rc1 {[%emt 0:00:02]} Nb8 {[%emt 0:00:03]} 26. Nab7 {[%emt 0:00:08]} a5 {[%emt 0:00:04]} 27. Nc5 {[%emt 0:00:01]} Ra7 {[%emt 0:00:01]} 28. Nxd7 {[%emt 0:00:04]} Rxd7 {[%emt 0:00:00]} 29. Bxd5+ cxd5 {[%emt 0:00:03]} 30. Nxb5 {[%emt 0:00:03]} Rb7 {[%emt 0:00:01]} 31. a4 {[%emt 0:00:01]} Na6 {[%emt 0:00:03]} 32. Re2 {[%emt 0:00:05]} Kf7 {[%emt 0:00:02]} 33. Nd6+ {[%emt 0:00:02]} 1-0

[Event "GER-chW Blitz 2019"]
[Site "Magdeburg"]
[Date "2019.05.25"]
[Round "8.5"]
[White "Kreismann, Franziska"]
[Black "Kushka, Alena"]
[Result "0-1"]
[ECO "A46"]
[WhiteElo "1589"]
[BlackElo "2148"]
[Annotator "NA"]
[PlyCount "48"]
[EventDate "2019.05.25"]
[EventType "tourn"]
[EventCountry "GER"]
[SourceTitle "playchess.com"]
[Source "ChessBase"]
[SourceQuality "1"]
[TimeControl "180+2"]

1. d4 {[%emt 0:00:00]} Nf6 {[%emt 0:00:00]} 2. Nf3 {[%emt 0:00:05]} c5 {[%emt 0:00:00]} 3. e3 {[%emt 0:00:07]} b6 {[%emt 0:00:08]} 4. c4 {[%emt 0:00:14]} Bb7 {[%emt 0:00:05]} 5. d5 {[%emt 0:00:03]} g6 {[%emt 0:00:03]} 6. Nc3 {[%emt 0:00:02]} Bg7 {[%emt 0:00:01]} 7. Bd3 {[%emt 0:00:06]} O-O {[%emt 0:00:02]} 8. O-O {[%emt 0:00:04]} d6 {[%emt 0:00:03]} 9. Qc2 {[%emt 0:00:08]} e6 {[%emt 0:00:01]} 10. e4 {[%emt 0:00:09]} exd5 {[%emt 0:00:07]} 11. exd5 {[%emt 0:00:03]} Re8 {[%emt 0:00:07]} 12. Bf4 {[%emt 0:00:07]} Na6 {[%emt 0:00:09]} 13. a3 {[%emt 0:00:04]} Nc7 {[%emt 0:00:05]} 14. Rfe1 {[%emt 0:00:08]} Rxe1+ {[%emt 0:00:07]} 15. Rxe1 {[%emt 0:00:00]} b5 {[%emt 0:00:07]} 16. Nxb5 {[%emt 0:00:17]} Nxb5 {[%emt 0:00:03]} 17. cxb5 {[%emt 0:00:01]} Nxd5 {[%emt 0:00:10]} 18. Bd2 {[%emt 0:00:14]} Qd7 {[%emt 0:00:10]} 19. Be4 {[%emt 0:00:14]} Re8 {[%emt 0:00:19]} 20. Bxd5 {[%emt 0:00:13]} Bxd5 {[%emt 0:00:04]} 21. Rxe8+ {[%emt 0:00:02]} Qxe8 {[%emt 0:00:01]} 22. Qd3 {[%emt 0:00:23]} Bxf3 {[%emt 0:00:13]} 23. Qxf3 {[%emt 0:00:02]} Bxb2 {[%emt 0:00:04]} 24. Bh6 {[%emt 0:00:11]} Qe1# {[%emt 0:00:03]} 0-1

[Event "GER-chW Blitz 2019"]
[Site "Magdeburg"]
[Date "2019.05.25"]
[Round "8.6"]
[White "Daemering, Katrin"]
[Black "Ries, Jutta"]
[Result "1/2-1/2"]
[ECO "A06"]
[WhiteElo "2003"]
[BlackElo "2017"]
[Annotator "NA"]
[PlyCount "123"]
[EventDate "2019.05.25"]
[EventType "tourn"]
[EventCountry "GER"]
[SourceTitle "playchess.com"]
[Source "ChessBase"]
[SourceQuality "1"]
[TimeControl "180+2"]

1. Nf3 {[%emt 0:00:00]} d5 {[%emt 0:00:00]} 2. g3 {[%emt 0:00:01]} Nf6 {[%emt 0:00:01]} 3. Bg2 {[%emt 0:00:01]} g6 {[%emt 0:00:02]} 4. d3 {[%emt 0:00:01]} Bg7 {[%emt 0:00:01]} 5. Nbd2 {[%emt 0:00:02]} O-O {[%emt 0:00:01]} 6. O-O {[%emt 0:00:02]} Nbd7 {[%emt 0:00:02]} 7. c4 {[%emt 0:00:01]} e6 {[%emt 0:00:04]} 8. Rb1 {[%emt 0:00:03]} c6 {[%emt 0:00:05]} 9. b3 {[%emt 0:00:02]} Qc7 {[%emt 0:00:03]} 10. Bb2 {[%emt 0:00:05]} Re8 {[%emt 0:00:09]} 11. Rc1 {[%emt 0:00:03]} e5 {[%emt 0:00:04]} 12. cxd5 Nxd5 {[%emt 0:00:02]} 13. Nc4 {[%emt 0:00:22]} N5b6 {[%emt 0:00:20]} 14. Ne3 {[%emt 0:00:11]} Nf8 {[%emt 0:00:11]} 15. Qc2 {[%emt 0:00:14]} Be6 {[%emt 0:00:30]} 16. Ng5 {[%emt 0:00:07]} Rad8 {[%emt 0:00:16]} 17. Ne4 {[%emt 0:00:04]} Bd5 {[%emt 0:00:11]} 18. Nxd5 Nxd5 19. Nc5 {[%emt 0:00:21]} Nb4 {[%emt 0:00:08]} 20. Qb1 {[%emt 0:00:04]} Ne6 {[%emt 0:00:06]} 21. Ne4 {[%emt 0:00:14]} f5 {[%emt 0:00:06]} 22. Nd2 {[%emt 0:00:01]} Nd4 {[%emt 0:00:04]} 23. Rfe1 {[%emt 0:00:13]} Qd6 {[%emt 0:00:17]} 24. Nc4 {[%emt 0:00:05]} Qc7 {[%emt 0:00:04]} 25. Bc3 {[%emt 0:00:10]} Nd5 {[%emt 0:00:10]} 26. Bd2 {[%emt 0:00:01]} Nb6 {[%emt 0:00:06]} 27. Nxb6 {[%emt 0:00:09]} Qxb6 {[%emt 0:00:01]} 28. Be3 {[%emt 0:00:03]} Qa5 {[%emt 0:00:03]} 29. Bf1 {[%emt 0:00:14]} Rd7 {[%emt 0:00:03]} 30. Rc4 {[%emt 0:00:05]} Nb5 {[%emt 0:00:03]} 31. Rc5 {[%emt 0:00:10]} Qc7 {[%emt 0:00:03]} 32. Rec1 {[%emt 0:00:03]} Nd4 {[%emt 0:00:05]} 33. Qb2 {[%emt 0:00:06]} Qd6 {[%emt 0:00:01]} 34. Bg2 {[%emt 0:00:04]} Ne6 {[%emt 0:00:04]} 35. R5c4 {[%emt 0:00:06]} e4 {[%emt 0:00:01]} 36. Qb1 {[%emt 0:00:04]} exd3 {[%emt 0:00:01]} 37. exd3 {[%emt 0:00:07]} Qxd3 {[%emt 0:00:01]} 38. Qxd3 {[%emt 0:00:09]} Rxd3 {[%emt 0:00:01]} 39. Bf1 {[%emt 0:00:02]} Rd7 {[%emt 0:00:04]} 40. a4 {[%emt 0:00:07]} b5 {[%emt 0:00:06]} 41. Rxc6 {[%emt 0:00:03]} bxa4 {[%emt 0:00:01]} 42. bxa4 Nd8 {[%emt 0:00:04]} 43. Rc7 {[%emt 0:00:08]} Rxc7 {[%emt 0:00:03]} 44. Rxc7 {[%emt 0:00:01]} Ne6 {[%emt 0:00:17]} 45. Rxa7 {[%emt 0:00:01]} f4 {[%emt 0:00:01]} 46. gxf4 {[%emt 0:00:04]} Bh6 {[%emt 0:00:02]} 47. Bc4 {[%emt 0:00:03]} Kh8 {[%emt 0:00:04]} 48. Bxe6 {[%emt 0:00:05]} Rxe6 {[%emt 0:00:01]} 49. Ra8+ {[%emt 0:00:02]} Kg7 {[%emt 0:00:01]} 50. Bd4+ {[%emt 0:00:01]} Kf7 {[%emt 0:00:01]} 51. Be5 {[%emt 0:00:01]} Bf8 {[%emt 0:00:02]} 52. a5 {[%emt 0:00:02]} Bc5 {[%emt 0:00:02]} 53. a6 {[%emt 0:00:02]} g5 {[%emt 0:00:01]} 54. Kg2 {[%emt 0:00:02]} gxf4 {[%emt 0:00:02]} 55. Bxf4 {[%emt 0:00:01]} Rf6 {[%emt 0:00:01]} 56. Bg3 {[%emt 0:00:01]} Kg6 {[%emt 0:00:04]} 57. Rc8 {[%emt 0:00:02]} Ba7 {[%emt 0:00:03]} 58. Rc7 {[%emt 0:00:01]} Rxa6 {[%emt 0:00:02]} 59. h4 {[%emt 0:00:03]} Ra2 {[%emt 0:00:02]} 60. Rc6+ {[%emt 0:00:04]} Kf7 {[%emt 0:00:01]} 61. Rc7+ {[%emt 0:00:01]} Kg6 {[%emt 0:00:00]} 62. Rc6+ 1/2-1/2

[Event "GER-chW Blitz 2019"]
[Site "Magdeburg"]
[Date "2019.05.25"]
[Round "8.7"]
[White "Sieber, Fiona"]
[Black "Lubbe, Melanie"]
[Result "1-0"]
[ECO "B63"]
[WhiteElo "2250"]
[BlackElo "2278"]
[Annotator "NA"]
[PlyCount "99"]
[EventDate "2019.05.25"]
[EventType "tourn"]
[EventCountry "GER"]
[SourceTitle "playchess.com"]
[Source "ChessBase"]
[SourceQuality "1"]
[TimeControl "180+2"]

1. e4 {[%emt 0:00:00]} c5 {[%emt 0:00:00]} 2. Nf3 {[%emt 0:00:00]} d6 {[%emt 0:00:00]} 3. d4 {[%emt 0:00:02]} cxd4 {[%emt 0:00:01]} 4. Nxd4 {[%emt 0:00:01]} Nf6 {[%emt 0:00:00]} 5. Nc3 {[%emt 0:00:02]} Nc6 {[%emt 0:00:01]} 6. Bg5 {[%emt 0:00:02]} e6 {[%emt 0:00:07]} 7. Qd2 {[%emt 0:00:02]} Qb6 {[%emt 0:00:01]} 8. Bxf6 {[%emt 0:00:05]} gxf6 {[%emt 0:00:01]} 9. Nb3 {[%emt 0:00:01]} a6 {[%emt 0:00:03]} 10. O-O-O {[%emt 0:00:04]} Bd7 {[%emt 0:00:01]} 11. f4 {[%emt 0:00:02]} h5 {[%emt 0:00:02]} 12. Be2 {[%emt 0:00:04]} Be7 {[%emt 0:00:01]} 13. Rhf1 {[%emt 0:00:05]} O-O-O {[%emt 0:00:02]} 14. Rf3 {[%emt 0:00:22]} Rdg8 {[%emt 0:00:04]} 15. Bf1 {[%emt 0:00:08]} Kb8 {[%emt 0:00:02]} 16. a3 {[%emt 0:00:19]} h4 {[%emt 0:00:21]} 17. Na4 {[%emt 0:00:16]} Qc7 {[%emt 0:00:13]} 18. Qf2 {[%emt 0:00:12]} Na7 {[%emt 0:00:16]} 19. Nb6 {[%emt 0:00:07]} Bc6 {[%emt 0:00:04]} 20. Re1 {[%emt 0:00:30]} f5 {[%emt 0:00:12]} 21. Nd2 {[%emt 0:00:06]} Bf6 {[%emt 0:00:08]} 22. Rb3 {[%emt 0:00:05]} fxe4 {[%emt 0:00:17]} 23. Nxe4 {[%emt 0:00:05]} Be7 {[%emt 0:00:09]} 24. Bxa6 {[%emt 0:00:05]} d5 {[%emt 0:00:05]} 25. Nc5 {[%emt 0:00:07]} Rxg2 {[%emt 0:00:20]} 26. Qxg2 {[%emt 0:00:07]} Bxc5 {[%emt 0:00:01]} 27. Qg7 {[%emt 0:00:12]} Rd8 {[%emt 0:00:04]} 28. Qe5 {[%emt 0:00:10]} Bd6 {[%emt 0:00:14]} 29. Qd4 {[%emt 0:00:03]} Bxf4+ {[%emt 0:00:04]} 30. Kb1 {[%emt 0:00:00]} Bxh2 {[%emt 0:00:04]} 31. Bf1 {[%emt 0:00:07]} Bg3 {[%emt 0:00:02]} 32. Rd1 {[%emt 0:00:03]} e5 {[%emt 0:00:01]} 33. Qg4 {[%emt 0:00:03]} e4 {[%emt 0:00:06]} 34. a4 {[%emt 0:00:03]} d4 {[%emt 0:00:19]} 35. a5 {[%emt 0:00:09]} Bd5 {[%emt 0:00:04]} 36. Ra3 {[%emt 0:00:05]} Nc6 {[%emt 0:00:04]} 37. Bc4 {[%emt 0:00:06]} Bxc4 {[%emt 0:00:03]} 38. Nxc4 {[%emt 0:00:01]} Nb4 {[%emt 0:00:03]} 39. Qe2 {[%emt 0:00:03]} d3 {[%emt 0:00:04]} 40. cxd3 {[%emt 0:00:02]} exd3 {[%emt 0:00:01]} 41. Qe4 {[%emt 0:00:01]} Rc8 {[%emt 0:00:11]} 42. Rc3 {[%emt 0:00:02]} f6 {[%emt 0:00:06]} 43. Nb6 {[%emt 0:00:01]} Qxc3 {[%emt 0:00:11]} 44. bxc3 {[%emt 0:00:01]} Rd8 {[%emt 0:00:04]} 45. cxb4 {[%emt 0:00:02]} Be5 {[%emt 0:00:02]} 46. Rxd3 {[%emt 0:00:02]} Re8 {[%emt 0:00:02]} 47. Qf3 {[%emt 0:00:01]} Rh8 {[%emt 0:00:02]} 48. Nd7+ {[%emt 0:00:01]} Kc7 {[%emt 0:00:01]} 49. Nxe5 {[%emt 0:00:01]} fxe5 {[%emt 0:00:01]} 50. Rc3+ {[%emt 0:00:01]} 1-0